[Event "Titled Tuesday Blitz November 01 Early 2022"]
[White "Jia, Haoxiang"]
[Black "Faizrakhmanov, Ramil"]
[WhiteFideId "8602999"]
[BlackFideId "24103209"]
[WhiteElo "2645"]
[BlackElo "2421"]
[Result "1-0"]
[Round "07"]
[TimeControl "180+1"]
[Date "2022.11.02"]
[WhiteClock "0:00:52"]
[BlackClock "0:00:13"]

1. d4 {[%clk 0:02:26]}  Nf6 {[%clk 0:03:00]} 2. c4 {[%clk 0:02:26]}  e6 {[%clk 0:03:00]} 3. Nf3 {[%clk 0:02:27]}  d5 {[%clk 0:02:59]} 4. Nc3 {[%clk 0:02:27]}  Bb4 {[%clk 0:02:59]} 5. cxd5 {[%clk 0:02:27]}  exd5 {[%clk 0:03:00]} 6. Bg5 {[%clk 0:02:27]}  h6 {[%clk 0:02:56]} 7. Bxf6 {[%clk 0:02:27]}  Qxf6 {[%clk 0:02:57]} 8. Qb3 {[%clk 0:02:28]}  Bxc3+ {[%clk 0:02:33]} 9. bxc3 {[%clk 0:02:29]}  c6 {[%clk 0:02:32]} 10. e3 {[%clk 0:02:23]}  O-O {[%clk 0:02:31]} 11. c4 {[%clk 0:02:22]}  dxc4 {[%clk 0:02:27]} 12. Bxc4 {[%clk 0:02:21]}  b5 {[%clk 0:02:13]} 13. Bd3 {[%clk 0:02:15]}  Be6 {[%clk 0:02:09]} 14. Qc2 {[%clk 0:02:12]}  Bd5 {[%clk 0:02:07]} 15. e4 {[%clk 0:02:11]}  Be6 {[%clk 0:02:01]} 16. O-O {[%clk 0:02:10]}  Rc8 {[%clk 0:01:48]} 17. Rfc1 {[%clk 0:01:50]}  Nd7 {[%clk 0:01:35]} 18. e5 {[%clk 0:01:43]}  Qe7 {[%clk 0:01:22]} 19. Bh7+ {[%clk 0:01:40]}  Kh8 {[%clk 0:01:21]} 20. Be4 {[%clk 0:01:40]}  Rab8 {[%clk 0:01:22]} 21. Bxc6 {[%clk 0:01:23]}  Rb6 {[%clk 0:01:12]} 22. Qe4 {[%clk 0:01:22]}  f5 {[%clk 0:01:05]} 23. exf6 {[%clk 0:01:22]}  Nxf6 {[%clk 0:01:06]} 24. Ne5 {[%clk 0:01:22]}  Kg8 {[%clk 0:00:37]} 25. Qe3 {[%clk 0:01:10]}  Qd6 {[%clk 0:00:33]} 26. Bf3 {[%clk 0:01:09]}  Rbb8 {[%clk 0:00:31]} 27. Rc6 {[%clk 0:01:06]}  Rxc6 {[%clk 0:00:30]} 28. Nxc6 {[%clk 0:01:06]}  Re8 {[%clk 0:00:30]} 29. Qd3 {[%clk 0:01:00]}  Bc4 {[%clk 0:00:24]} 30. Qg6 {[%clk 0:00:59]}  Bd5 {[%clk 0:00:17]} 31. Bxd5+ {[%clk 0:00:51]}  Qxd5 {[%clk 0:00:18]} 32. Qxe8+ {[%clk 0:00:52]}  Nxe8 {[%clk 0:00:13]} 33. Ne7+ {[%clk 0:00:52]} 1-0


[Site "https://www.chess.com"]

[Event "Titled Tuesday Blitz November 01 Early 2022"]
[White "Jiganchine, Roman"]
[Black "Bogaudinov, Rushan"]
[WhiteFideId "2603667"]
[BlackFideId "4129288"]
[WhiteElo "2300"]
[BlackElo "1945"]
[Result "1-0"]
[Round "07"]
[TimeControl "180+1"]
[Date "2022.11.02"]
[WhiteClock "0:00:55"]
[BlackClock "0:02:09"]

1. e4 {[%clk 0:02:59]}  a6 {[%clk 0:02:59]} 2. d4 {[%clk 0:02:57]}  e6 {[%clk 0:02:59]} 3. Bd3 {[%clk 0:02:54]}  b5 {[%clk 0:02:59]} 4. Nf3 {[%clk 0:02:51]}  Bb7 {[%clk 0:03:00]} 5. a4 {[%clk 0:02:51]}  b4 {[%clk 0:03:00]} 6. c3 {[%clk 0:02:49]}  d5 {[%clk 0:02:59]} 7. e5 {[%clk 0:02:49]}  c5 {[%clk 0:02:59]} 8. O-O {[%clk 0:02:46]}  Nc6 {[%clk 0:02:57]} 9. dxc5 {[%clk 0:02:32]}  Bxc5 {[%clk 0:02:57]} 10. Re1 {[%clk 0:02:30]}  Nge7 {[%clk 0:02:56]} 11. h4 {[%clk 0:02:29]}  Qb6 {[%clk 0:02:56]} 12. Qe2 {[%clk 0:02:28]}  Ng6 {[%clk 0:02:46]} 13. h5 {[%clk 0:02:20]}  Ngxe5 {[%clk 0:02:46]} 14. Nxe5 {[%clk 0:02:10]}  Nxe5 {[%clk 0:02:47]} 15. Qxe5 {[%clk 0:02:06]}  Bxf2+ {[%clk 0:02:45]} 16. Kh1 {[%clk 0:02:05]}  Bxe1 {[%clk 0:02:43]} 17. Qxe1 {[%clk 0:02:06]}  h6 {[%clk 0:02:39]} 18. a5 {[%clk 0:02:05]}  Qc5 {[%clk 0:02:37]} 19. cxb4 {[%clk 0:02:01]}  Qd4 {[%clk 0:02:37]} 20. Bf1 {[%clk 0:01:41]}  Rc8 {[%clk 0:02:33]} 21. Be3 {[%clk 0:01:40]}  Qxb2 {[%clk 0:02:31]} 22. Nd2 {[%clk 0:01:37]}  d4 {[%clk 0:02:29]} 23. Rb1 {[%clk 0:01:33]}  Qc3 {[%clk 0:02:29]} 24. Bf4 {[%clk 0:01:30]}  O-O {[%clk 0:02:28]} 25. Be5 {[%clk 0:01:19]}  f6 {[%clk 0:02:24]} 26. Bd6 {[%clk 0:01:18]}  e5 {[%clk 0:02:22]} 27. Bxf8 {[%clk 0:01:15]}  Kxf8 {[%clk 0:02:23]} 28. Ne4 {[%clk 0:01:09]}  Qe3 {[%clk 0:02:20]} 29. Qxe3 {[%clk 0:01:05]}  dxe3 {[%clk 0:02:21]} 30. Nc5 {[%clk 0:01:05]}  Bd5 {[%clk 0:02:15]} 31. Re1 {[%clk 0:01:00]}  Bf7 {[%clk 0:02:10]} 32. Rxe3 {[%clk 0:01:00]}  Bxh5 {[%clk 0:02:10]} 33. Bxa6 {[%clk 0:00:56]}  Rd8 {[%clk 0:02:09]} 34. Ne6+ {[%clk 0:00:55]} 1-0


[Site "https://www.chess.com"]

[Event "Titled Tuesday Blitz November 01 Early 2022"]
[White "Jobava, Baadur"]
[Black "Navara, David"]
[WhiteFideId "13601520"]
[BlackFideId "309095"]
[WhiteElo "2582"]
[BlackElo "2676"]
[Result "1-0"]
[Round "07"]
[TimeControl "180+1"]
[Date "2022.11.01"]
[WhiteClock "0:00:57"]
[BlackClock "0:00:02"]

1. e4 {[%clk 0:03:00]}  e5 {[%clk 0:02:59]} 2. Nf3 {[%clk 0:03:01]}  Nc6 {[%clk 0:02:59]} 3. d4 {[%clk 0:03:02]}  exd4 {[%clk 0:02:59]} 4. Nxd4 {[%clk 0:03:02]}  Nf6 {[%clk 0:02:59]} 5. Nxc6 {[%clk 0:03:03]}  bxc6 {[%clk 0:03:00]} 6. Bd3 {[%clk 0:03:03]}  d5 {[%clk 0:02:53]} 7. exd5 {[%clk 0:03:04]}  cxd5 {[%clk 0:02:53]} 8. O-O {[%clk 0:03:05]}  Be7 {[%clk 0:02:52]} 9. h3 {[%clk 0:03:05]}  O-O {[%clk 0:02:52]} 10. Nd2 {[%clk 0:03:06]}  c5 {[%clk 0:02:48]} 11. b3 {[%clk 0:03:06]}  Bb7 {[%clk 0:02:36]} 12. Re1 {[%clk 0:03:06]}  Re8 {[%clk 0:02:23]} 13. Bb5 {[%clk 0:03:06]}  Nd7 {[%clk 0:02:19]} 14. Bb2 {[%clk 0:03:00]}  d4 {[%clk 0:01:52]} 15. Qg4 {[%clk 0:02:49]}  Nf6 {[%clk 0:01:50]} 16. Qe2 {[%clk 0:02:45]}  Qd5 {[%clk 0:01:47]} 17. Qf3 {[%clk 0:02:41]}  Qxf3 {[%clk 0:01:28]} 18. Nxf3 {[%clk 0:02:42]}  Reb8 {[%clk 0:01:27]} 19. Nxd4 {[%clk 0:02:22]}  cxd4 {[%clk 0:01:20]} 20. Rxe7 {[%clk 0:02:22]}  Bxg2 {[%clk 0:01:21]} 21. Kxg2 {[%clk 0:02:20]}  Rxb5 {[%clk 0:01:20]} 22. Bxd4 {[%clk 0:02:21]}  Rg5+ {[%clk 0:01:15]} 23. Kf1 {[%clk 0:02:20]}  a5 {[%clk 0:01:07]} 24. Bxf6 {[%clk 0:02:19]}  gxf6 {[%clk 0:01:08]} 25. Rd1 {[%clk 0:02:17]}  a4 {[%clk 0:00:47]} 26. Rdd7 {[%clk 0:02:16]}  axb3 {[%clk 0:00:46]} 27. axb3 {[%clk 0:02:17]}  Ra1+ {[%clk 0:00:46]} 28. Ke2 {[%clk 0:02:17]}  Ra2 {[%clk 0:00:45]} 29. Rc7 {[%clk 0:02:16]}  Rb5 {[%clk 0:00:41]} 30. Kd3 {[%clk 0:01:46]}  Rd5+ {[%clk 0:00:37]} 31. Kc4 {[%clk 0:01:34]}  Rh5 {[%clk 0:00:27]} 32. c3 {[%clk 0:01:26]}  Rxh3 {[%clk 0:00:20]} 33. Rxf7 {[%clk 0:01:16]}  Rc2 {[%clk 0:00:20]} 34. Rg7+ {[%clk 0:01:17]}  Kf8 {[%clk 0:00:16]} 35. Rg3 {[%clk 0:01:18]}  Rh4+ {[%clk 0:00:15]} 36. Kb5 {[%clk 0:01:17]}  Rxf2 {[%clk 0:00:16]} 37. c4 {[%clk 0:01:14]}  h5 {[%clk 0:00:14]} 38. c5 {[%clk 0:01:13]}  Re4 {[%clk 0:00:13]} 39. Rd3 {[%clk 0:01:11]}  h4 {[%clk 0:00:12]} 40. Rh7 {[%clk 0:01:06]}  Ke8 {[%clk 0:00:07]} 41. c6 {[%clk 0:01:00]}  Rc2 {[%clk 0:00:07]} 42. Rdd7 {[%clk 0:00:57]}  Re5+ {[%clk 0:00:02]} 43. Kb6 {[%clk 0:00:57]} 1-0


[Site "https://www.chess.com"]

[Event "Titled Tuesday Blitz November 01 Early 2022"]
[White "Khamdamova, Afruza"]
[Black "Laohawirapap, Prin"]
[WhiteFideId "14210444"]
[BlackFideId "6205003"]
[WhiteElo "2018"]
[BlackElo "2113"]
[Result "0-1"]
[Round "07"]
[TimeControl "180+1"]
[Date "2022.11.02"]
[WhiteClock "0:00:03"]
[BlackClock "0:01:17"]

1. e4 {[%clk 0:02:57]}  e6 {[%clk 0:02:57]} 2. d4 {[%clk 0:02:57]}  d5 {[%clk 0:02:58]} 3. Nc3 {[%clk 0:02:53]}  Bb4 {[%clk 0:02:57]} 4. e5 {[%clk 0:02:44]}  c5 {[%clk 0:02:57]} 5. a3 {[%clk 0:02:40]}  Bxc3+ {[%clk 0:02:56]} 6. bxc3 {[%clk 0:02:39]}  Ne7 {[%clk 0:02:56]} 7. Nf3 {[%clk 0:02:39]}  b6 {[%clk 0:02:52]} 8. Bd3 {[%clk 0:02:38]}  Ba6 {[%clk 0:02:52]} 9. O-O {[%clk 0:02:37]}  Qd7 {[%clk 0:02:49]} 10. Be3 {[%clk 0:02:29]}  c4 {[%clk 0:02:37]} 11. Be2 {[%clk 0:02:28]}  Qa4 {[%clk 0:02:38]} 12. Qb1 {[%clk 0:02:13]}  Nbc6 {[%clk 0:02:37]} 13. Nd2 {[%clk 0:01:57]}  Nf5 {[%clk 0:02:33]} 14. Bf4 {[%clk 0:01:53]}  Qa5 {[%clk 0:02:26]} 15. Bg4 {[%clk 0:01:46]}  Nfe7 {[%clk 0:02:15]} 16. Qb2 {[%clk 0:01:37]}  Nxd4 {[%clk 0:02:14]} 17. cxd4 {[%clk 0:01:36]}  c3 {[%clk 0:02:14]} 18. Qb4 {[%clk 0:01:34]}  cxd2 {[%clk 0:02:11]} 19. Qxa5 {[%clk 0:01:33]}  bxa5 {[%clk 0:02:12]} 20. Rfd1 {[%clk 0:01:24]}  h5 {[%clk 0:02:12]} 21. Bh3 {[%clk 0:01:18]}  Rc8 {[%clk 0:02:11]} 22. Rxd2 {[%clk 0:01:17]}  O-O {[%clk 0:02:11]} 23. g4 {[%clk 0:01:06]}  hxg4 {[%clk 0:02:09]} 24. Bxg4 {[%clk 0:01:06]}  Rc7 {[%clk 0:02:10]} 25. Rc1 {[%clk 0:01:02]}  Rfc8 {[%clk 0:02:09]} 26. Be2 {[%clk 0:00:55]}  Bxe2 {[%clk 0:02:08]} 27. Rxe2 {[%clk 0:00:54]}  Rc3 {[%clk 0:02:06]} 28. Kg2 {[%clk 0:00:44]}  Rxa3 {[%clk 0:02:05]} 29. Re3 {[%clk 0:00:40]}  Ra2 {[%clk 0:02:00]} 30. c3 {[%clk 0:00:38]}  Nf5 {[%clk 0:02:00]} 31. Rd3 {[%clk 0:00:36]}  a4 {[%clk 0:02:00]} 32. Rb1 {[%clk 0:00:32]}  Ra3 {[%clk 0:01:59]} 33. Bd2 {[%clk 0:00:30]}  Rb3 {[%clk 0:01:59]} 34. Ra1 {[%clk 0:00:29]}  a3 {[%clk 0:02:00]} 35. Bc1 {[%clk 0:00:28]}  Rcxc3 {[%clk 0:01:58]} 36. Rxc3 {[%clk 0:00:28]}  Rxc3 {[%clk 0:01:59]} 37. Bxa3 {[%clk 0:00:28]}  Rc4 {[%clk 0:01:46]} 38. Bc5 {[%clk 0:00:27]}  Nxd4 {[%clk 0:01:45]} 39. Bxd4 {[%clk 0:00:24]}  Rxd4 {[%clk 0:01:46]} 40. Rxa7 {[%clk 0:00:24]}  Re4 {[%clk 0:01:46]} 41. Ra8+ {[%clk 0:00:24]}  Kh7 {[%clk 0:01:46]} 42. Ra7 {[%clk 0:00:23]}  Kg6 {[%clk 0:01:46]} 43. f3 {[%clk 0:00:21]}  Rxe5 {[%clk 0:01:46]} 44. Kg3 {[%clk 0:00:22]}  d4 {[%clk 0:01:46]} 45. Rd7 {[%clk 0:00:20]}  Rd5 {[%clk 0:01:45]} 46. Ra7 {[%clk 0:00:14]}  d3 {[%clk 0:01:44]} 47. Ra1 {[%clk 0:00:15]}  d2 {[%clk 0:01:44]} 48. Rd1 {[%clk 0:00:15]}  Kf5 {[%clk 0:01:42]} 49. h4 {[%clk 0:00:15]}  g6 {[%clk 0:01:43]} 50. f4 {[%clk 0:00:12]}  Rd3+ {[%clk 0:01:42]} 51. Kf2 {[%clk 0:00:10]}  Kxf4 {[%clk 0:01:43]} 52. Ke2 {[%clk 0:00:10]}  Rd7 {[%clk 0:01:43]} 53. Rf1+ {[%clk 0:00:09]}  Kg4 {[%clk 0:01:43]} 54. Kd1 {[%clk 0:00:09]}  Kxh4 {[%clk 0:01:44]} 55. Rf4+ {[%clk 0:00:09]}  Kg3 {[%clk 0:01:43]} 56. Rf1 {[%clk 0:00:09]}  f5 {[%clk 0:01:43]} 57. Rg1+ {[%clk 0:00:09]}  Kf2 {[%clk 0:01:43]} 58. Rxg6 {[%clk 0:00:09]}  f4 {[%clk 0:01:43]} 59. Rxe6 {[%clk 0:00:10]}  f3 {[%clk 0:01:43]} 60. Rf6 {[%clk 0:00:09]}  Kg2 {[%clk 0:01:43]} 61. Rg6+ {[%clk 0:00:10]}  Kf1 {[%clk 0:01:40]} 62. Rf6 {[%clk 0:00:10]}  f2 {[%clk 0:01:37]} 63. Rh6 {[%clk 0:00:11]}  Rd5 {[%clk 0:01:34]} 64. Rg6 {[%clk 0:00:10]}  Rd8 {[%clk 0:01:30]} 65. Rg7 {[%clk 0:00:10]}  Rh8 {[%clk 0:01:18]} 66. Kxd2 {[%clk 0:00:09]}  Rh2 {[%clk 0:01:19]} 67. Rf7 {[%clk 0:00:07]}  Kg1 {[%clk 0:01:17]} 68. Rg7+ {[%clk 0:00:03]}  Rg2 {[%clk 0:01:17]} 0-1


[Site "https://www.chess.com"]

[Event "Titled Tuesday Blitz November 01 Early 2022"]
[White "Kirillov, Dmitry"]
[Black "Korchmar, Vasiliy"]
[WhiteFideId "34180572"]
[BlackFideId "24131750"]
[WhiteElo "2095"]
[BlackElo "2370"]
[Result "1-0"]
[Round "07"]
[TimeControl "180+1"]
[Date "2022.11.02"]
[WhiteClock "0:01:48"]
[BlackClock "0:00:01"]

1. e4 {[%clk 0:03:00]}  c5 {[%clk 0:03:00]} 2. Nc3 {[%clk 0:03:00]}  d6 {[%clk 0:03:00]} 3. f4 {[%clk 0:03:01]}  Nc6 {[%clk 0:03:00]} 4. Nf3 {[%clk 0:03:01]}  e6 {[%clk 0:02:59]} 5. Bc4 {[%clk 0:03:00]}  Nf6 {[%clk 0:02:59]} 6. d3 {[%clk 0:03:00]}  Be7 {[%clk 0:02:55]} 7. O-O {[%clk 0:02:59]}  O-O {[%clk 0:02:54]} 8. h3 {[%clk 0:02:56]}  a6 {[%clk 0:02:49]} 9. Bb3 {[%clk 0:02:53]}  Na5 {[%clk 0:02:40]} 10. e5 {[%clk 0:02:50]}  Nd7 {[%clk 0:02:26]} 11. Qe1 {[%clk 0:02:47]}  d5 {[%clk 0:02:19]} 12. f5 {[%clk 0:02:47]}  c4 {[%clk 0:02:16]} 13. dxc4 {[%clk 0:02:41]}  dxc4 {[%clk 0:02:15]} 14. f6 {[%clk 0:02:10]}  Bc5+ {[%clk 0:02:15]} 15. Kh1 {[%clk 0:02:09]}  cxb3 {[%clk 0:02:16]} 16. axb3 {[%clk 0:02:03]}  Nc6 {[%clk 0:02:08]} 17. Qg3 {[%clk 0:01:56]}  g6 {[%clk 0:02:07]} 18. Qh4 {[%clk 0:01:56]}  Re8 {[%clk 0:02:06]} 19. Ne4 {[%clk 0:01:51]}  Bf8 {[%clk 0:02:02]} 20. Bh6 {[%clk 0:01:51]}  Ncxe5 {[%clk 0:00:43]} 21. Nxe5 {[%clk 0:01:50]}  Nxe5 {[%clk 0:00:03]} 22. Bxf8 {[%clk 0:01:50]}  h5 {[%clk 0:00:01]} 23. Qg5 {[%clk 0:01:48]} 1-0


[Site "https://www.chess.com"]

[Event "Titled Tuesday Blitz November 01 Early 2022"]
[White "Kustar, Sandor"]
[Black "Tharushi, T H D Niklesha"]
[WhiteFideId "702900"]
[BlackFideId "9918264"]
[WhiteElo "2376"]
[BlackElo "1596"]
[Result "1-0"]
[Round "07"]
[TimeControl "180+1"]
[Date "2022.11.02"]
[WhiteClock "0:01:28"]
[BlackClock "0:01:53"]

1. Nf3 {[%clk 0:02:42]}  d5 {[%clk 0:02:58]} 2. c4 {[%clk 0:02:41]}  Nf6 {[%clk 0:02:57]} 3. cxd5 {[%clk 0:02:41]}  Nxd5 {[%clk 0:02:57]} 4. d4 {[%clk 0:02:41]}  e6 {[%clk 0:02:56]} 5. e4 {[%clk 0:02:40]}  Nf6 {[%clk 0:02:54]} 6. Nc3 {[%clk 0:02:40]}  Bb4 {[%clk 0:02:49]} 7. Bd3 {[%clk 0:02:40]}  O-O {[%clk 0:02:47]} 8. e5 {[%clk 0:02:28]}  Nd5 {[%clk 0:02:46]} 9. Bxh7+ {[%clk 0:02:27]}  Kxh7 {[%clk 0:02:22]} 10. Ng5+ {[%clk 0:02:27]}  Qxg5 {[%clk 0:02:22]} 11. Bxg5 {[%clk 0:02:26]}  Nxc3 {[%clk 0:02:22]} 12. bxc3 {[%clk 0:02:26]}  Bxc3+ {[%clk 0:02:22]} 13. Bd2 {[%clk 0:02:11]}  Bxa1 {[%clk 0:02:23]} 14. Qxa1 {[%clk 0:02:11]}  b6 {[%clk 0:02:22]} 15. Qc1 {[%clk 0:02:08]}  c6 {[%clk 0:02:18]} 16. h4 {[%clk 0:02:01]}  Ba6 {[%clk 0:02:17]} 17. h5 {[%clk 0:02:01]}  Nd7 {[%clk 0:02:17]} 18. h6 {[%clk 0:02:01]}  g6 {[%clk 0:02:18]} 19. Bb4 {[%clk 0:01:58]}  c5 {[%clk 0:02:15]} 20. dxc5 {[%clk 0:01:58]}  bxc5 {[%clk 0:02:16]} 21. Bc3 {[%clk 0:01:52]}  c4 {[%clk 0:02:14]} 22. Rh4 {[%clk 0:01:49]}  Nc5 {[%clk 0:02:13]} 23. Qg5 {[%clk 0:01:39]}  Nd3+ {[%clk 0:02:08]} 24. Kf1 {[%clk 0:01:39]}  Rad8 {[%clk 0:02:03]} 25. Qf6 {[%clk 0:01:37]}  Rg8 {[%clk 0:02:00]} 26. Qxf7+ {[%clk 0:01:38]}  Kh8 {[%clk 0:02:01]} 27. Qxe6 {[%clk 0:01:33]}  Nc1 {[%clk 0:01:57]} 28. Qf6+ {[%clk 0:01:29]}  Kh7 {[%clk 0:01:57]} 29. Qf7+ {[%clk 0:01:29]}  Kh8 {[%clk 0:01:57]} 30. e6+ {[%clk 0:01:29]}  Rg7 {[%clk 0:01:53]} 31. Qxg7# {[%clk 0:01:28]} 1-0


[Site "https://www.chess.com"]

[Event "Titled Tuesday Blitz November 01 Early 2022"]
[White "Li, Hui"]
[Black "Blokhin, Sofia"]
[WhiteFideId "15400310"]
[BlackFideId "4508190"]
[WhiteElo "1954"]
[BlackElo "2005"]
[Result "1-0"]
[Round "07"]
[TimeControl "180+1"]
[Date "2022.11.02"]
[WhiteClock "0:00:02"]
[BlackClock "0:00:02"]

1. e4 {[%clk 0:03:00]}  c5 {[%clk 0:02:59]} 2. Nf3 {[%clk 0:03:01]}  e6 {[%clk 0:02:58]} 3. d4 {[%clk 0:03:01]}  cxd4 {[%clk 0:02:58]} 4. Nxd4 {[%clk 0:03:02]}  a6 {[%clk 0:02:58]} 5. c4 {[%clk 0:03:02]}  Nf6 {[%clk 0:02:57]} 6. Nc3 {[%clk 0:03:03]}  Bb4 {[%clk 0:02:55]} 7. Bd3 {[%clk 0:03:03]}  O-O {[%clk 0:02:51]} 8. O-O {[%clk 0:02:54]}  Nc6 {[%clk 0:02:51]} 9. Nxc6 {[%clk 0:02:51]}  dxc6 {[%clk 0:02:50]} 10. e5 {[%clk 0:02:46]}  Bxc3 {[%clk 0:02:49]} 11. bxc3 {[%clk 0:02:43]}  Nd7 {[%clk 0:02:47]} 12. Re1 {[%clk 0:02:20]}  Qa5 {[%clk 0:02:42]} 13. Bf4 {[%clk 0:01:29]}  Qxc3 {[%clk 0:02:40]} 14. Rc1 {[%clk 0:01:28]}  Qa5 {[%clk 0:02:38]} 15. Qg4 {[%clk 0:01:22]}  g6 {[%clk 0:02:32]} 16. h4 {[%clk 0:01:15]}  Nc5 {[%clk 0:02:21]} 17. Bb1 {[%clk 0:01:12]}  Bd7 {[%clk 0:02:05]} 18. h5 {[%clk 0:01:06]}  Kg7 {[%clk 0:02:01]} 19. Qg5 {[%clk 0:01:03]}  Qd8 {[%clk 0:01:52]} 20. Qf6+ {[%clk 0:00:44]}  Qxf6 {[%clk 0:01:46]} 21. exf6+ {[%clk 0:00:45]}  Kxf6 {[%clk 0:01:43]} 22. Bd6 {[%clk 0:00:45]}  b6 {[%clk 0:01:30]} 23. Bxf8 {[%clk 0:00:43]}  Rxf8 {[%clk 0:01:30]} 24. hxg6 {[%clk 0:00:42]}  hxg6 {[%clk 0:01:27]} 25. Rcd1 {[%clk 0:00:41]}  Ke7 {[%clk 0:01:19]} 26. f4 {[%clk 0:00:39]}  b5 {[%clk 0:01:12]} 27. cxb5 {[%clk 0:00:38]}  cxb5 {[%clk 0:01:11]} 28. Rc1 {[%clk 0:00:39]}  Rc8 {[%clk 0:01:07]} 29. Red1 {[%clk 0:00:36]}  Na4 {[%clk 0:01:02]} 30. Rxc8 {[%clk 0:00:34]}  Bxc8 {[%clk 0:01:03]} 31. Rc1 {[%clk 0:00:32]}  Bd7 {[%clk 0:01:03]} 32. Kf2 {[%clk 0:00:31]}  Nb6 {[%clk 0:01:01]} 33. Bd3 {[%clk 0:00:26]}  Nd5 {[%clk 0:01:00]} 34. g3 {[%clk 0:00:26]}  Nb4 {[%clk 0:00:58]} 35. Bb1 {[%clk 0:00:25]}  Kd6 {[%clk 0:00:57]} 36. a3 {[%clk 0:00:24]}  Nd5 {[%clk 0:00:56]} 37. Be4 {[%clk 0:00:23]}  Nf6 {[%clk 0:00:54]} 38. Bb7 {[%clk 0:00:23]}  a5 {[%clk 0:00:55]} 39. Rd1+ {[%clk 0:00:22]}  Kc7 {[%clk 0:00:53]} 40. Bf3 {[%clk 0:00:22]}  Bc6 {[%clk 0:00:47]} 41. Rc1 {[%clk 0:00:19]}  Nd5 {[%clk 0:00:47]} 42. Bxd5 {[%clk 0:00:19]}  exd5 {[%clk 0:00:47]} 43. Ke3 {[%clk 0:00:20]}  Kd6 {[%clk 0:00:45]} 44. Kd4 {[%clk 0:00:19]}  Bd7 {[%clk 0:00:41]} 45. Re1 {[%clk 0:00:18]}  f6 {[%clk 0:00:33]} 46. Rh1 {[%clk 0:00:17]}  Bf5 {[%clk 0:00:29]} 47. Rh8 {[%clk 0:00:16]}  Be4 {[%clk 0:00:26]} 48. Ra8 {[%clk 0:00:15]}  a4 {[%clk 0:00:20]} 49. Ra6+ {[%clk 0:00:15]}  Kc7 {[%clk 0:00:19]} 50. Rxf6 {[%clk 0:00:14]}  Kd7 {[%clk 0:00:18]} 51. Rb6 {[%clk 0:00:14]}  Kc7 {[%clk 0:00:15]} 52. Rxb5 {[%clk 0:00:13]}  Kc6 {[%clk 0:00:15]} 53. Rb4 {[%clk 0:00:13]}  Bc2 {[%clk 0:00:15]} 54. Rb8 {[%clk 0:00:11]}  Kc7 {[%clk 0:00:14]} 55. Rb2 {[%clk 0:00:11]}  Bb3 {[%clk 0:00:14]} 56. g4 {[%clk 0:00:11]}  Kd6 {[%clk 0:00:13]} 57. f5 {[%clk 0:00:10]}  gxf5 {[%clk 0:00:12]} 58. gxf5 {[%clk 0:00:11]}  Ke7 {[%clk 0:00:12]} 59. Ke5 {[%clk 0:00:11]}  Kf7 {[%clk 0:00:11]} 60. f6 {[%clk 0:00:10]}  Kf8 {[%clk 0:00:07]} 61. Rd2 {[%clk 0:00:09]}  Kf7 {[%clk 0:00:07]} 62. Rd4 {[%clk 0:00:10]}  Kf8 {[%clk 0:00:07]} 63. Rh4 {[%clk 0:00:10]}  Kf7 {[%clk 0:00:06]} 64. Rh7+ {[%clk 0:00:10]}  Kg8 {[%clk 0:00:06]} 65. Rd7 {[%clk 0:00:09]}  Kf8 {[%clk 0:00:06]} 66. Ra7 {[%clk 0:00:07]}  Ke8 {[%clk 0:00:05]} 67. Kd4 {[%clk 0:00:06]}  Kf8 {[%clk 0:00:05]} 68. Rc7 {[%clk 0:00:05]}  Ke8 {[%clk 0:00:05]} 69. Re7+ {[%clk 0:00:04]}  Kf8 {[%clk 0:00:05]} 70. Ra7 {[%clk 0:00:04]}  Ke8 {[%clk 0:00:05]} 71. Kc5 {[%clk 0:00:05]}  Kf8 {[%clk 0:00:05]} 72. Kd6 {[%clk 0:00:05]}  Ke8 {[%clk 0:00:05]} 73. Ke6 {[%clk 0:00:05]}  d4+ {[%clk 0:00:05]} 74. Ke5 {[%clk 0:00:05]}  d3 {[%clk 0:00:05]} 75. Ra8+ {[%clk 0:00:03]}  Kf7 {[%clk 0:00:05]} 76. Rd8 {[%clk 0:00:03]}  Bc2 {[%clk 0:00:04]} 77. Rd7+ {[%clk 0:00:03]}  Ke8 {[%clk 0:00:04]} 78. Rd4 {[%clk 0:00:03]}  Kf7 {[%clk 0:00:02]} 79. Rd6 {[%clk 0:00:02]} 1-0


[Site "https://www.chess.com"]

[Event "Titled Tuesday Blitz November 01 Early 2022"]
[White "Ljukin, Sergei"]
[Black "Goltseva, Ekaterina"]
[WhiteFideId "14102200"]
[BlackFideId "24173770"]
[WhiteElo "2312"]
[BlackElo "2200"]
[Result "1-0"]
[Round "07"]
[TimeControl "180+1"]
[Date "2022.11.02"]
[WhiteClock "0:00:01"]
[BlackClock "0:00:02"]

1. e4 {[%clk 0:03:00]}  e5 {[%clk 0:02:49]} 2. Nf3 {[%clk 0:02:59]}  Nf6 {[%clk 0:02:49]} 3. d4 {[%clk 0:02:58]}  exd4 {[%clk 0:02:48]} 4. e5 {[%clk 0:02:57]}  Ne4 {[%clk 0:02:48]} 5. Qxd4 {[%clk 0:02:51]}  d5 {[%clk 0:02:48]} 6. exd6 {[%clk 0:02:51]}  Nxd6 {[%clk 0:02:49]} 7. Nc3 {[%clk 0:02:51]}  Nc6 {[%clk 0:02:48]} 8. Qf4 {[%clk 0:02:39]}  Be6 {[%clk 0:02:47]} 9. Be3 {[%clk 0:02:32]}  Be7 {[%clk 0:02:43]} 10. O-O-O {[%clk 0:02:23]}  h6 {[%clk 0:02:43]} 11. Kb1 {[%clk 0:02:17]}  Qd7 {[%clk 0:02:43]} 12. Ne4 {[%clk 0:02:05]}  Bxa2+ {[%clk 0:02:37]} 13. Ka1 {[%clk 0:01:48]}  Be6 {[%clk 0:02:23]} 14. Nc5 {[%clk 0:01:44]}  Qc8 {[%clk 0:02:23]} 15. Nd4 {[%clk 0:01:21]}  Nxd4 {[%clk 0:02:05]} 16. Bxd4 {[%clk 0:01:20]}  O-O {[%clk 0:02:00]} 17. Bd3 {[%clk 0:01:20]}  b6 {[%clk 0:01:44]} 18. Qg3 {[%clk 0:01:16]}  Ne8 {[%clk 0:01:35]} 19. Ne4 {[%clk 0:01:00]}  c5 {[%clk 0:01:26]} 20. Bc3 {[%clk 0:00:59]}  c4 {[%clk 0:01:26]} 21. Be2 {[%clk 0:00:59]}  b5 {[%clk 0:01:21]} 22. Kb1 {[%clk 0:00:18]}  b4 {[%clk 0:01:19]} 23. Bd4 {[%clk 0:00:19]}  b3 {[%clk 0:01:05]} 24. cxb3 {[%clk 0:00:18]}  cxb3 {[%clk 0:01:05]} 25. Nc3 {[%clk 0:00:18]}  Bf5+ {[%clk 0:00:59]} 26. Kc1 {[%clk 0:00:16]}  Qe6 {[%clk 0:00:53]} 27. Rhe1 {[%clk 0:00:15]}  Rc8 {[%clk 0:00:41]} 28. Bb5 {[%clk 0:00:14]}  Bg5+ {[%clk 0:00:24]} 29. f4 {[%clk 0:00:13]}  Qd5 {[%clk 0:00:13]} 30. Bxe8 {[%clk 0:00:12]}  Qa5 {[%clk 0:00:09]} 31. Kd2 {[%clk 0:00:08]}  Rfxe8 {[%clk 0:00:04]} 32. Rxe8+ {[%clk 0:00:07]}  Rxe8 {[%clk 0:00:03]} 33. fxg5 {[%clk 0:00:07]}  h5 {[%clk 0:00:03]} 34. Be3 {[%clk 0:00:06]}  Qb4 {[%clk 0:00:03]} 35. Ke2 {[%clk 0:00:05]}  Qb6 {[%clk 0:00:02]} 36. Kf2 {[%clk 0:00:05]}  Qc6 {[%clk 0:00:02]} 37. Rd4 {[%clk 0:00:05]}  Bg6 {[%clk 0:00:02]} 38. h4 {[%clk 0:00:05]}  a5 {[%clk 0:00:03]} 39. Kg1 {[%clk 0:00:05]}  Qe6 {[%clk 0:00:03]} 40. Bf2 {[%clk 0:00:04]}  Qf5 {[%clk 0:00:03]} 41. Kh2 {[%clk 0:00:03]}  Qc2 {[%clk 0:00:04]} 42. Nd5 {[%clk 0:00:02]}  Qxb2 {[%clk 0:00:04]} 43. Nf4 {[%clk 0:00:01]}  Qc3 {[%clk 0:00:02]} 44. Qxc3 {[%clk 0:00:01]}  b2 {[%clk 0:00:02]} 45. Qxb2 {[%clk 0:00:01]} 1-0


[Site "https://www.chess.com"]